[Event "Titled Tuesday Blitz June 27 Late 2023"]
[White "Firouzja, Alireza"]
[Black "Cuenca Jimenez, Jose Fernando"]
[WhiteFideId "12573981"]
[BlackFideId "2255570"]
[WhiteElo "3115"]
[BlackElo "2670"]
[Result "1-0"]
[Round "2"]
[TimeControl "180+2"]
[Date "2023.06.27"]
[WhiteClock "0:01:41"]
[BlackClock "0:01:00"]
[Board "4"]

1. d4 {[%clk 0:03:00]}  d6 {[%clk 0:02:59]} 2. e4 {[%clk 0:03:00]}  Nf6 {[%clk 0:02:59]} 3. Nc3 {[%clk 0:03:01]}  e5 {[%clk 0:03:00]} 4. dxe5 {[%clk 0:03:02]}  dxe5 {[%clk 0:03:00]} 5. Qxd8+ {[%clk 0:03:03]}  Kxd8 {[%clk 0:03:01]} 6. Bc4 {[%clk 0:03:03]}  Bb4 {[%clk 0:03:00]} 7. Bxf7 {[%clk 0:03:01]}  Rf8 {[%clk 0:02:57]} 8. Bb3 {[%clk 0:02:57]}  Nxe4 {[%clk 0:02:57]} 9. Ne2 {[%clk 0:02:57]}  Nc5 {[%clk 0:02:52]} 10. Bg5+ {[%clk 0:02:51]}  Ke8 {[%clk 0:02:52]} 11. O-O-O {[%clk 0:02:51]}  Nxb3+ {[%clk 0:02:52]} 12. axb3 {[%clk 0:02:52]}  Bd6 {[%clk 0:02:36]} 13. Ne4 {[%clk 0:02:28]}  h6 {[%clk 0:02:31]} 14. Nxd6+ {[%clk 0:02:16]}  cxd6 {[%clk 0:02:31]} 15. Be3 {[%clk 0:02:17]}  Ke7 {[%clk 0:02:23]} 16. Nc3 {[%clk 0:02:17]}  Be6 {[%clk 0:02:22]} 17. Nb5 {[%clk 0:02:16]}  Rc8 {[%clk 0:02:01]} 18. Nxd6 {[%clk 0:02:14]}  Rc6 {[%clk 0:02:01]} 19. Nxb7 {[%clk 0:02:13]}  Nd7 {[%clk 0:01:57]} 20. Na5 {[%clk 0:02:11]}  Rc7 {[%clk 0:01:57]} 21. b4 {[%clk 0:02:08]}  Rac8 {[%clk 0:01:53]} 22. c3 {[%clk 0:02:07]}  Nb6 {[%clk 0:01:53]} 23. Bc5+ {[%clk 0:02:05]}  Kf7 {[%clk 0:01:52]} 24. Bd6 {[%clk 0:02:04]}  Rd7 {[%clk 0:01:47]} 25. Bxe5 {[%clk 0:02:04]}  Nc4 {[%clk 0:01:46]} 26. Rxd7+ {[%clk 0:02:03]}  Bxd7 {[%clk 0:01:46]} 27. Nxc4 {[%clk 0:02:04]}  Rxc4 {[%clk 0:01:47]} 28. Bd4 {[%clk 0:02:04]}  a6 {[%clk 0:01:45]} 29. Re1 {[%clk 0:02:04]}  Be6 {[%clk 0:01:42]} 30. Kd2 {[%clk 0:02:01]}  g6 {[%clk 0:01:42]} 31. Re5 {[%clk 0:02:01]}  Rc6 {[%clk 0:01:41]} 32. Rc5 {[%clk 0:02:00]}  Rxc5 {[%clk 0:01:40]} 33. bxc5 {[%clk 0:01:58]}  Bd5 {[%clk 0:01:38]} 34. f3 {[%clk 0:01:59]}  Ke6 {[%clk 0:01:37]} 35. Ke3 {[%clk 0:01:59]}  h5 {[%clk 0:01:35]} 36. g4 {[%clk 0:01:59]}  Bc6 {[%clk 0:01:31]} 37. Kf4 {[%clk 0:01:58]}  Bd5 {[%clk 0:01:30]} 38. Kg3 {[%clk 0:01:57]}  Bc6 {[%clk 0:01:29]} 39. h3 {[%clk 0:01:58]}  Bd5 {[%clk 0:01:28]} 40. f4 {[%clk 0:01:57]}  Be4 {[%clk 0:01:23]} 41. f5+ {[%clk 0:01:55]}  gxf5 {[%clk 0:01:23]} 42. gxh5 {[%clk 0:01:56]}  f4+ {[%clk 0:01:09]} 43. Kxf4 {[%clk 0:01:57]}  Bc2 {[%clk 0:01:10]} 44. Kg5 {[%clk 0:01:56]}  Be4 {[%clk 0:01:08]} 45. h6 {[%clk 0:01:53]}  a5 {[%clk 0:01:08]} 46. b4 {[%clk 0:01:47]}  a4 {[%clk 0:01:07]} 47. b5 {[%clk 0:01:47]}  Kd5 {[%clk 0:01:03]} 48. c6 {[%clk 0:01:44]}  Kc4 {[%clk 0:01:00]} 49. c7 {[%clk 0:01:41]} 1-0


[Site "https://www.chess.com"]

[Event "Titled Tuesday Blitz June 27 Late 2023"]
[White "Bluebaum, Matthias"]
[Black "Zamorano, Jorge"]
[WhiteFideId "24651516"]
[BlackFideId "173770"]
[WhiteElo "3066"]
[BlackElo "2666"]
[Result "1-0"]
[Round "2"]
[TimeControl "180+2"]
[Date "2023.06.27"]
[WhiteClock "0:02:41"]
[BlackClock "0:00:00"]
[Board "6"]

1. d4 {[%clk 0:03:00]}  Nf6 {[%clk 0:02:59]} 2. c4 {[%clk 0:03:01]}  e6 {[%clk 0:02:59]} 3. Nc3 {[%clk 0:03:01]}  Bb4 {[%clk 0:02:57]} 4. e3 {[%clk 0:03:01]}  O-O {[%clk 0:02:57]} 5. Bd2 {[%clk 0:03:01]}  d5 {[%clk 0:02:56]} 6. Nf3 {[%clk 0:03:02]}  b6 {[%clk 0:02:55]} 7. cxd5 {[%clk 0:03:02]}  exd5 {[%clk 0:02:54]} 8. Rc1 {[%clk 0:03:02]}  a6 {[%clk 0:02:52]} 9. Bd3 {[%clk 0:03:02]}  Bb7 {[%clk 0:02:52]} 10. O-O {[%clk 0:03:02]}  Nbd7 {[%clk 0:02:51]} 11. Ne5 {[%clk 0:03:02]}  Re8 {[%clk 0:02:49]} 12. f4 {[%clk 0:03:02]}  Bxc3 {[%clk 0:02:20]} 13. Bxc3 {[%clk 0:03:01]}  Ne4 {[%clk 0:02:20]} 14. Bxe4 {[%clk 0:03:00]}  dxe4 {[%clk 0:02:20]} 15. Qb3 {[%clk 0:02:54]}  Nxe5 {[%clk 0:02:20]} 16. dxe5 {[%clk 0:02:55]}  Bd5 {[%clk 0:00:00]} 17. Qc2 {[%clk 0:02:41]} 1-0


[Site "https://www.chess.com"]

[Event "Titled Tuesday Blitz June 27 Late 2023"]
[White "Stoleriu, George"]
[Black "Mamedov, Rauf"]
[WhiteFideId "1227505"]
[BlackFideId "13401653"]
[WhiteElo "2662"]
[BlackElo "3060"]
[Result "0-1"]
[Round "2"]
[TimeControl "180+2"]
[Date "2023.06.27"]
[WhiteClock "0:00:00"]
[BlackClock "0:00:09"]
[Board "7"]

1. e4 {[%clk 0:03:00]}  c5 {[%clk 0:02:59]} 2. Nc3 {[%clk 0:03:00]}  Nc6 {[%clk 0:02:58]} 3. Bb5 {[%clk 0:02:54]}  Nd4 {[%clk 0:02:58]} 4. Bc4 {[%clk 0:02:52]}  a6 {[%clk 0:02:57]} 5. Nge2 {[%clk 0:02:52]}  b5 {[%clk 0:02:57]} 6. Bd5 {[%clk 0:02:52]}  Rb8 {[%clk 0:02:56]} 7. Nxd4 {[%clk 0:02:53]}  cxd4 {[%clk 0:02:57]} 8. Ne2 {[%clk 0:02:54]}  Nf6 {[%clk 0:02:57]} 9. Nxd4 {[%clk 0:02:52]}  e6 {[%clk 0:02:57]} 10. Bb3 {[%clk 0:02:52]}  Nxe4 {[%clk 0:02:57]} 11. O-O {[%clk 0:02:50]}  Bb7 {[%clk 0:02:57]} 12. d3 {[%clk 0:02:50]}  Nc5 {[%clk 0:02:57]} 13. Re1 {[%clk 0:02:43]}  Be7 {[%clk 0:02:52]} 14. Qg4 {[%clk 0:02:40]}  O-O {[%clk 0:02:51]} 15. Bf4 {[%clk 0:02:31]}  Rc8 {[%clk 0:02:50]} 16. Re3 {[%clk 0:02:18]}  Bf6 {[%clk 0:02:44]} 17. Bd6 {[%clk 0:02:09]}  Re8 {[%clk 0:02:42]} 18. Rae1 {[%clk 0:02:01]}  g6 {[%clk 0:01:56]} 19. h4 {[%clk 0:01:41]}  h5 {[%clk 0:01:43]} 20. Qf4 {[%clk 0:01:41]}  Bxh4 {[%clk 0:01:28]} 21. Nf3 {[%clk 0:01:08]}  Bf6 {[%clk 0:01:07]} 22. Ne5 {[%clk 0:01:08]}  Nxb3 {[%clk 0:01:03]} 23. Rg3 {[%clk 0:00:40]}  Kg7 {[%clk 0:00:48]} 24. cxb3 {[%clk 0:00:25]}  Rh8 {[%clk 0:00:38]} 25. d4 {[%clk 0:00:15]}  Rh7 {[%clk 0:00:26]} 26. Kh2 {[%clk 0:00:12]}  Bd5 {[%clk 0:00:22]} 27. Ree3 {[%clk 0:00:12]}  Kg8 {[%clk 0:00:18]} 28. Rc3 {[%clk 0:00:10]}  Rxc3 {[%clk 0:00:16]} 29. Rxc3 {[%clk 0:00:11]}  Be7 {[%clk 0:00:12]} 30. Bxe7 {[%clk 0:00:09]}  Qxe7 {[%clk 0:00:13]} 31. Rc7 {[%clk 0:00:10]}  g5 {[%clk 0:00:11]} 32. Qg3 {[%clk 0:00:07]}  Qf6 {[%clk 0:00:10]} 33. Nxd7 {[%clk 0:00:06]}  Qd8 {[%clk 0:00:09]} 34. Qd6 {[%clk 0:00:05]}  Rg7 {[%clk 0:00:08]} 35. Qc5 {[%clk 0:00:03]}  Kh7 {[%clk 0:00:07]} 36. Ne5 {[%clk 0:00:02]}  Qf6 {[%clk 0:00:07]} 37. Rc8 {[%clk 0:00:03]}  Qf4+ {[%clk 0:00:07]} 38. Kg1 {[%clk 0:00:03]}  Qe4 {[%clk 0:00:07]} 39. Nf3 {[%clk 0:00:02]}  g4 {[%clk 0:00:07]} 40. Qf8 {[%clk 0:00:02]}  gxf3 {[%clk 0:00:07]} 41. Qh8+ {[%clk 0:00:03]}  Kg6 {[%clk 0:00:08]} 42. Rg8 {[%clk 0:00:03]}  Rxg8 {[%clk 0:00:07]} 43. Qxg8+ {[%clk 0:00:04]}  Kf6 {[%clk 0:00:08]} 44. Qd8+ {[%clk 0:00:04]}  Kg7 {[%clk 0:00:08]} 45. Qg5+ {[%clk 0:00:04]}  Qg6 {[%clk 0:00:09]} 46. Qe5+ {[%clk 0:00:05]}  Kh7 {[%clk 0:00:09]} 47. g3 {[%clk 0:00:05]}  h4 {[%clk 0:00:10]} 48. Kf1 {[%clk 0:00:00]}  Qb1+ {[%clk 0:00:09]} 0-1


[Site "https://www.chess.com"]

[Event "Titled Tuesday Blitz June 27 Late 2023"]
[White "Pranesh M"]
[Black "Karttunen, Mika"]
[WhiteFideId "35028600"]
[BlackFideId "502081"]
[WhiteElo "3031"]
[BlackElo "2654"]
[Result "1-0"]
[Round "2"]
[TimeControl "180+2"]
[Date "2023.06.27"]
[WhiteClock "0:01:57"]
[BlackClock "0:00:00"]
[Board "8"]

1. e4 {[%clk 0:03:00]}  c5 {[%clk 0:02:58]} 2. Nf3 {[%clk 0:03:01]}  d6 {[%clk 0:02:58]} 3. d4 {[%clk 0:03:01]}  cxd4 {[%clk 0:02:57]} 4. Nxd4 {[%clk 0:03:02]}  Nf6 {[%clk 0:02:58]} 5. Nc3 {[%clk 0:03:03]}  a6 {[%clk 0:02:58]} 6. Rg1 {[%clk 0:03:02]}  e5 {[%clk 0:02:37]} 7. Nb3 {[%clk 0:03:02]}  Be6 {[%clk 0:02:35]} 8. g4 {[%clk 0:03:01]}  h6 {[%clk 0:02:35]} 9. h4 {[%clk 0:03:00]}  g6 {[%clk 0:02:16]} 10. g5 {[%clk 0:02:58]}  Nfd7 {[%clk 0:01:54]} 11. h5 {[%clk 0:02:53]}  hxg5 {[%clk 0:01:40]} 12. hxg6 {[%clk 0:02:51]}  f6 {[%clk 0:01:40]} 13. Nd5 {[%clk 0:02:48]}  Rh4 {[%clk 0:01:19]} 14. Be3 {[%clk 0:02:40]}  Nc6 {[%clk 0:01:11]} 15. Qf3 {[%clk 0:02:17]}  Bg7 {[%clk 0:01:04]} 16. Bc4 {[%clk 0:02:14]}  Bxd5 {[%clk 0:00:10]} 17. Bxd5 {[%clk 0:02:15]}  Qc7 {[%clk 0:00:09]} 18. Bf7+ {[%clk 0:02:13]}  Ke7 {[%clk 0:00:08]} 19. O-O-O {[%clk 0:02:13]}  Rc8 {[%clk 0:00:08]} 20. c3 {[%clk 0:02:11]}  b5 {[%clk 0:00:07]} 21. Kb1 {[%clk 0:02:11]}  Nd8 {[%clk 0:00:07]} 22. Bd5 {[%clk 0:02:11]}  Nf8 {[%clk 0:00:05]} 23. Rxg5 {[%clk 0:02:11]}  Nde6 {[%clk 0:00:04]} 24. Rh5 {[%clk 0:02:10]}  Rxh5 {[%clk 0:00:03]} 25. Qxh5 {[%clk 0:02:10]}  a5 {[%clk 0:00:03]} 26. f4 {[%clk 0:02:07]}  b4 {[%clk 0:00:03]} 27. fxe5 {[%clk 0:02:04]}  bxc3 {[%clk 0:00:02]} 28. exd6+ {[%clk 0:02:04]}  Qxd6 {[%clk 0:00:03]} 29. bxc3 {[%clk 0:02:04]}  Rxc3 {[%clk 0:00:02]} 30. Bd2 {[%clk 0:02:03]}  Rxb3+ {[%clk 0:00:02]} 31. axb3 {[%clk 0:02:02]}  a4 {[%clk 0:00:00]} 32. Qh3 {[%clk 0:01:57]} 1-0


[Site "https://www.chess.com"]

[Event "Titled Tuesday Blitz June 27 Late 2023"]
[White "Papp, Levente"]
[Black "Oparin, Grigoriy"]
[WhiteFideId "751243"]
[BlackFideId "24125890"]
[WhiteElo "2650"]
[BlackElo "3023"]
[Result "0-1"]
[Round "2"]
[TimeControl "180+2"]
[Date "2023.06.27"]
[WhiteClock "0:00:08"]
[BlackClock "0:01:22"]
[Board "10"]

1. b3 {[%clk 0:03:00]}  e5 {[%clk 0:02:59]} 2. Bb2 {[%clk 0:03:00]}  Nc6 {[%clk 0:03:00]} 3. c4 {[%clk 0:03:00]}  Nge7 {[%clk 0:02:59]} 4. Nc3 {[%clk 0:03:00]}  d5 {[%clk 0:02:59]} 5. cxd5 {[%clk 0:03:00]}  Nxd5 {[%clk 0:03:00]} 6. g3 {[%clk 0:02:58]}  Be6 {[%clk 0:02:59]} 7. Bg2 {[%clk 0:02:58]}  Be7 {[%clk 0:02:58]} 8. Nf3 {[%clk 0:02:57]}  O-O {[%clk 0:02:58]} 9. O-O {[%clk 0:02:57]}  f6 {[%clk 0:02:53]} 10. d4 {[%clk 0:02:49]}  Nxc3 {[%clk 0:02:50]} 11. Bxc3 {[%clk 0:02:50]}  e4 {[%clk 0:02:51]} 12. Nd2 {[%clk 0:02:51]}  f5 {[%clk 0:02:48]} 13. e3 {[%clk 0:02:49]}  Bd6 {[%clk 0:02:35]} 14. f3 {[%clk 0:02:44]}  exf3 {[%clk 0:02:35]} 15. Qxf3 {[%clk 0:02:44]}  Bd7 {[%clk 0:02:17]} 16. Nc4 {[%clk 0:02:37]}  Qe7 {[%clk 0:02:17]} 17. Rae1 {[%clk 0:02:33]}  Rae8 {[%clk 0:02:15]} 18. Qd5+ {[%clk 0:02:11]}  Kh8 {[%clk 0:02:12]} 19. Nxd6 {[%clk 0:02:07]}  cxd6 {[%clk 0:02:12]} 20. e4 {[%clk 0:02:03]}  Be6 {[%clk 0:02:03]} 21. Qb5 {[%clk 0:02:03]}  a6 {[%clk 0:02:03]} 22. Qd3 {[%clk 0:01:55]}  fxe4 {[%clk 0:02:03]} 23. Rxf8+ {[%clk 0:01:37]}  Qxf8 {[%clk 0:02:00]} 24. Bxe4 {[%clk 0:01:35]}  Bg8 {[%clk 0:01:57]} 25. Bxc6 {[%clk 0:01:11]}  bxc6 {[%clk 0:01:56]} 26. Qxa6 {[%clk 0:00:55]}  Bd5 {[%clk 0:01:51]} 27. Qf1 {[%clk 0:00:52]}  Rxe1 {[%clk 0:01:50]} 28. Bxe1 {[%clk 0:00:53]}  Qe7 {[%clk 0:01:49]} 29. Bd2 {[%clk 0:00:40]}  h6 {[%clk 0:01:50]} 30. Qd3 {[%clk 0:00:40]}  Qe6 {[%clk 0:01:41]} 31. a4 {[%clk 0:00:28]}  Bxb3 {[%clk 0:01:40]} 32. a5 {[%clk 0:00:29]}  Bc4 {[%clk 0:01:40]} 33. Qe3 {[%clk 0:00:28]}  Qf5 {[%clk 0:01:36]} 34. h4 {[%clk 0:00:24]}  Qf1+ {[%clk 0:01:32]} 35. Kh2 {[%clk 0:00:23]}  Bd5 {[%clk 0:01:33]} 36. Qg1 {[%clk 0:00:18]}  Qe2+ {[%clk 0:01:33]} 37. Kh3 {[%clk 0:00:18]}  Qxd2 {[%clk 0:01:25]} 38. a6 {[%clk 0:00:15]}  Be6+ {[%clk 0:01:24]} 39. g4 {[%clk 0:00:15]}  Qd3+ {[%clk 0:01:24]} 40. Qg3 {[%clk 0:00:16]}  Qxa6 {[%clk 0:01:24]} 41. Qxd6 {[%clk 0:00:16]}  Qd3+ {[%clk 0:01:24]} 42. Kh2 {[%clk 0:00:16]}  Qe2+ {[%clk 0:01:24]} 43. Kg3 {[%clk 0:00:08]}  Qxg4+ {[%clk 0:01:24]} 44. Kf2 {[%clk 0:00:09]}  Qxh4+ {[%clk 0:01:24]} 45. Ke3 {[%clk 0:00:10]}  Qg5+ {[%clk 0:01:22]} 46. Kd3 {[%clk 0:00:10]}  Bd5 {[%clk 0:01:22]} 47. Qf8+ {[%clk 0:00:09]}  Kh7 {[%clk 0:01:22]} 48. Kc2 {[%clk 0:00:09]}  h5 {[%clk 0:01:22]} 49. Qf2 {[%clk 0:00:08]}  h4 {[%clk 0:01:21]} 50. Kb2 {[%clk 0:00:09]}  h3 {[%clk 0:01:22]} 51. Qc2+ {[%clk 0:00:09]}  Qg6 {[%clk 0:01:22]} 52. Qh2 {[%clk 0:00:08]}  Qg2+ {[%clk 0:01:22]} 0-1


[Site "https://www.chess.com"]

[Event "Titled Tuesday Blitz June 27 Late 2023"]
[White "Andreikin, Dmitry"]
[Black "Ashraf, Artin"]
[WhiteFideId "4158814"]
[BlackFideId "22514805"]
[WhiteElo "3022"]
[BlackElo "2647"]
[Result "1-0"]
[Round "2"]
[TimeControl "180+2"]
[Date "2023.06.27"]
[WhiteClock "0:00:13"]
[BlackClock "0:00:00"]
[Board "11"]

1. e4 {[%clk 0:03:00]}  c5 {[%clk 0:02:59]} 2. Nc3 {[%clk 0:02:59]}  d6 {[%clk 0:02:57]} 3. Nge2 {[%clk 0:02:59]}  Nf6 {[%clk 0:02:49]} 4. g3 {[%clk 0:02:58]}  g6 {[%clk 0:02:45]} 5. Bg2 {[%clk 0:02:58]}  Bg7 {[%clk 0:02:46]} 6. O-O {[%clk 0:02:59]}  O-O {[%clk 0:02:45]} 7. d3 {[%clk 0:02:59]}  Nc6 {[%clk 0:02:44]} 8. h3 {[%clk 0:02:58]}  Rb8 {[%clk 0:02:40]} 9. a4 {[%clk 0:02:56]}  a6 {[%clk 0:02:39]} 10. f4 {[%clk 0:02:55]}  Bd7 {[%clk 0:02:37]} 11. g4 {[%clk 0:02:53]}  b5 {[%clk 0:02:35]} 12. axb5 {[%clk 0:02:54]}  axb5 {[%clk 0:02:35]} 13. Ng3 {[%clk 0:02:55]}  Ne8 {[%clk 0:02:12]} 14. Nd5 {[%clk 0:02:50]}  Nc7 {[%clk 0:02:07]} 15. Ne3 {[%clk 0:02:47]}  Ra8 {[%clk 0:01:59]} 16. Rxa8 {[%clk 0:02:45]}  Qxa8 {[%clk 0:02:00]} 17. e5 {[%clk 0:02:36]}  Qa1 {[%clk 0:01:49]} 18. exd6 {[%clk 0:02:32]}  exd6 {[%clk 0:01:48]} 19. Ne4 {[%clk 0:02:29]}  Bxb2 {[%clk 0:01:32]} 20. Nxd6 {[%clk 0:01:53]}  Bxc1 {[%clk 0:01:12]} 21. Qxc1 {[%clk 0:01:53]}  Qd4 {[%clk 0:01:12]} 22. Ne4 {[%clk 0:01:41]}  Nd5 {[%clk 0:01:09]} 23. Re1 {[%clk 0:01:35]}  Nxf4 {[%clk 0:01:03]} 24. c3 {[%clk 0:01:34]}  Qe5 {[%clk 0:00:36]} 25. Qd2 {[%clk 0:01:19]}  Be6 {[%clk 0:00:36]} 26. g5 {[%clk 0:01:13]}  Kg7 {[%clk 0:00:25]} 27. Rf1 {[%clk 0:00:59]}  Rd8 {[%clk 0:00:13]} 28. Ng4 {[%clk 0:00:54]}  Nxh3+ {[%clk 0:00:11]} 29. Bxh3 {[%clk 0:00:52]}  Qxe4 {[%clk 0:00:11]} 30. Qf2 {[%clk 0:00:46]}  Qf5 {[%clk 0:00:07]} 31. Qh4 {[%clk 0:00:26]}  Qxd3 {[%clk 0:00:04]} 32. Qh6+ {[%clk 0:00:14]}  Kh8 {[%clk 0:00:04]} 33. Bg2 {[%clk 0:00:14]}  Qxc3 {[%clk 0:00:03]} 34. Nf6 {[%clk 0:00:13]}  Qe3+ {[%clk 0:00:00]} 35. Kh1 {[%clk 0:00:13]} 1-0


[Site "https://www.chess.com"]

[Event "Titled Tuesday Blitz June 27 Late 2023"]
[White "Stark, Lars"]
[Black "Galperin, Platon"]
[WhiteFideId "4676386"]
[BlackFideId "14165414"]
[WhiteElo "2623"]
[BlackElo "2997"]
[Result "0-1"]
[Round "2"]
[TimeControl "180+2"]
[Date "2023.06.27"]
[WhiteClock "0:00:00"]
[BlackClock "0:00:21"]
[Board "17"]

1. c4 {[%clk 0:03:00]}  Nf6 {[%clk 0:02:59]} 2. g3 {[%clk 0:03:00]}  g6 {[%clk 0:02:59]} 3. Bg2 {[%clk 0:03:01]}  Bg7 {[%clk 0:02:59]} 4. Nc3 {[%clk 0:03:01]}  O-O {[%clk 0:03:00]} 5. e4 {[%clk 0:03:02]}  e6 {[%clk 0:02:46]} 6. Nge2 {[%clk 0:03:02]}  Na6 {[%clk 0:02:44]} 7. d4 {[%clk 0:03:00]}  d5 {[%clk 0:02:43]} 8. e5 {[%clk 0:02:59]}  Nd7 {[%clk 0:02:42]} 9. cxd5 {[%clk 0:02:59]}  exd5 {[%clk 0:02:43]} 10. Nxd5 {[%clk 0:02:55]}  c5 {[%clk 0:02:43]} 11. O-O {[%clk 0:02:53]}  cxd4 {[%clk 0:02:43]} 12. f4 {[%clk 0:02:53]}  Ndc5 {[%clk 0:02:18]} 13. Nxd4 {[%clk 0:02:52]}  Ne6 {[%clk 0:02:14]} 14. Be3 {[%clk 0:02:42]}  Nac7 {[%clk 0:02:14]} 15. Nxe6 {[%clk 0:02:25]}  Bxe6 {[%clk 0:02:10]} 16. Nc3 {[%clk 0:02:21]}  Qc8 {[%clk 0:01:48]} 17. Rc1 {[%clk 0:02:19]}  Rd8 {[%clk 0:01:49]} 18. Qf3 {[%clk 0:02:10]}  Qd7 {[%clk 0:01:47]} 19. Rfd1 {[%clk 0:02:03]}  Qe7 {[%clk 0:01:42]} 20. Qxb7 {[%clk 0:01:59]}  Rab8 {[%clk 0:01:42]} 21. Qxa7 {[%clk 0:01:32]}  Bf8 {[%clk 0:01:22]} 22. Ne4 {[%clk 0:01:26]}  Rxd1+ {[%clk 0:01:19]} 23. Rxd1 {[%clk 0:01:24]}  Rxb2 {[%clk 0:01:01]} 24. Bc5 {[%clk 0:01:21]}  Rxa2 {[%clk 0:00:54]} 25. Bxe7 {[%clk 0:01:11]}  Rxa7 {[%clk 0:00:53]} 26. Rd8 {[%clk 0:01:12]}  Ra1+ {[%clk 0:00:48]} 27. Kf2 {[%clk 0:01:06]}  Ra2+ {[%clk 0:00:47]} 28. Kf3 {[%clk 0:01:06]}  Ra3+ {[%clk 0:00:47]} 29. Kf2 {[%clk 0:01:00]}  Ra2+ {[%clk 0:00:47]} 30. Nd2 {[%clk 0:00:44]}  Rxd2+ {[%clk 0:00:45]} 31. Rxd2 {[%clk 0:00:37]}  Bxe7 {[%clk 0:00:45]} 32. Rb2 {[%clk 0:00:27]}  Bc5+ {[%clk 0:00:44]} 33. Ke2 {[%clk 0:00:26]}  Bg1 {[%clk 0:00:39]} 34. h3 {[%clk 0:00:26]}  h5 {[%clk 0:00:36]} 35. Rb7 {[%clk 0:00:20]}  Nd5 {[%clk 0:00:32]} 36. Rb8+ {[%clk 0:00:20]}  Kg7 {[%clk 0:00:32]} 37. Kf1 {[%clk 0:00:20]}  Ba7 {[%clk 0:00:28]} 38. Rb7 {[%clk 0:00:19]}  Ne3+ {[%clk 0:00:27]} 39. Kg1 {[%clk 0:00:16]}  Bd4 {[%clk 0:00:22]} 40. Kh2 {[%clk 0:00:17]}  Nxg2 {[%clk 0:00:21]} 41. Kxg2 {[%clk 0:00:00]}  Bd5+ {[%clk 0:00:21]} 0-1


[Site "https://www.chess.com"]

[Event "Titled Tuesday Blitz June 27 Late 2023"]
[White "Bortnyk, Olexandr"]
[Black "TimGrutter03"]
[WhiteFideId "14120828"]
[WhiteElo "2983"]
[BlackElo "2621"]
[Result "1-0"]
[Round "2"]
[TimeControl "180+2"]
[Date "2023.06.27"]
[WhiteClock "0:01:19"]
[BlackClock "0:00:01"]
[Board "18"]

1. d4 {[%clk 0:02:54]}  g6 {[%clk 0:02:59]} 2. Bf4 {[%clk 0:02:53]}  Bg7 {[%clk 0:02:59]} 3. e3 {[%clk 0:02:53]}  d6 {[%clk 0:02:59]} 4. Nf3 {[%clk 0:02:51]}  Nd7 {[%clk 0:02:58]} 5. h3 {[%clk 0:02:50]}  a6 {[%clk 0:02:56]} 6. Nbd2 {[%clk 0:02:49]}  b5 {[%clk 0:02:56]} 7. a4 {[%clk 0:02:46]}  b4 {[%clk 0:02:50]} 8. a5 {[%clk 0:02:46]}  Ngf6 {[%clk 0:02:41]} 9. Bc4 {[%clk 0:02:44]}  O-O {[%clk 0:02:40]} 10. O-O {[%clk 0:02:44]}  c5 {[%clk 0:02:40]} 11. Qe2 {[%clk 0:02:37]}  Bb7 {[%clk 0:02:09]} 12. c3 {[%clk 0:02:36]}  bxc3 {[%clk 0:02:04]} 13. bxc3 {[%clk 0:02:37]}  Nd5 {[%clk 0:01:52]} 14. Bxd5 {[%clk 0:02:21]}  Bxd5 {[%clk 0:01:53]} 15. e4 {[%clk 0:02:21]}  Bb7 {[%clk 0:01:39]} 16. Rfb1 {[%clk 0:02:14]}  Qc8 {[%clk 0:01:22]} 17. Qe3 {[%clk 0:02:13]}  Rb8 {[%clk 0:01:13]} 18. Bh6 {[%clk 0:02:11]}  Qc7 {[%clk 0:00:53]} 19. Re1 {[%clk 0:01:59]}  Nf6 {[%clk 0:00:39]} 20. Bxg7 {[%clk 0:01:55]}  Kxg7 {[%clk 0:00:39]} 21. e5 {[%clk 0:01:50]}  Nd5 {[%clk 0:00:38]} 22. Qg5 {[%clk 0:01:48]}  cxd4 {[%clk 0:00:27]} 23. cxd4 {[%clk 0:01:46]}  dxe5 {[%clk 0:00:24]} 24. dxe5 {[%clk 0:01:45]}  e6 {[%clk 0:00:20]} 25. Ne4 {[%clk 0:01:42]}  Qe7 {[%clk 0:00:18]} 26. Qg3 {[%clk 0:01:38]}  Rfd8 {[%clk 0:00:11]} 27. Nd6 {[%clk 0:01:36]}  Ba8 {[%clk 0:00:09]} 28. Ra4 {[%clk 0:01:28]}  Rb4 {[%clk 0:00:07]} 29. Rxb4 {[%clk 0:01:19]}  Nxb4 {[%clk 0:00:08]} 30. Nd4 {[%clk 0:01:20]}  Nc6 {[%clk 0:00:06]} 31. N4f5+ {[%clk 0:01:20]}  exf5 {[%clk 0:00:06]} 32. Nxf5+ {[%clk 0:01:20]}  Kf8 {[%clk 0:00:06]} 33. Nxe7 {[%clk 0:01:21]}  Nxe7 {[%clk 0:00:07]} 34. e6 {[%clk 0:01:22]}  Nf5 {[%clk 0:00:01]} 35. Qc7 {[%clk 0:01:19]} 1-0


[Site "https://www.chess.com"]

[Event "Titled Tuesday Blitz June 27 Late 2023"]
[White "Korobov, Anton"]
[Black "Martinez Ramirez, Lennis"]
[WhiteFideId "14105730"]
[BlackFideId "3509079"]
[WhiteElo "2973"]
[BlackElo "2618"]
[Result "1-0"]
[Round "2"]
[TimeControl "180+2"]
[Date "2023.06.27"]
[WhiteClock "0:01:45"]
[BlackClock "0:00:06"]
[Board "20"]

1. d4 {[%clk 0:03:00]}  Nf6 {[%clk 0:02:58]} 2. c4 {[%clk 0:03:01]}  e6 {[%clk 0:02:59]} 3. Nf3 {[%clk 0:03:01]}  d5 {[%clk 0:02:58]} 4. Nc3 {[%clk 0:03:01]}  dxc4 {[%clk 0:02:57]} 5. e4 {[%clk 0:03:01]}  b5 {[%clk 0:02:57]} 6. e5 {[%clk 0:03:01]}  Nd5 {[%clk 0:02:56]} 7. Nxb5 {[%clk 0:03:01]}  Nb6 {[%clk 0:02:57]} 8. Be2 {[%clk 0:03:02]}  Bb7 {[%clk 0:02:57]} 9. O-O {[%clk 0:03:02]}  Be7 {[%clk 0:02:42]} 10. Be3 {[%clk 0:02:59]}  O-O {[%clk 0:02:40]} 11. Rc1 {[%clk 0:02:59]}  Bd5 {[%clk 0:02:38]} 12. Nc3 {[%clk 0:02:57]}  c6 {[%clk 0:02:38]} 13. Qc2 {[%clk 0:02:52]}  N8d7 {[%clk 0:02:34]} 14. Rfd1 {[%clk 0:02:48]}  a5 {[%clk 0:02:32]} 15. h4 {[%clk 0:02:44]}  Bxh4 {[%clk 0:02:28]} 16. g3 {[%clk 0:02:41]}  Be7 {[%clk 0:02:17]} 17. Kg2 {[%clk 0:02:41]}  f6 {[%clk 0:02:17]} 18. exf6 {[%clk 0:02:35]}  Nxf6 {[%clk 0:02:10]} 19. Rh1 {[%clk 0:02:30]}  g6 {[%clk 0:02:09]} 20. Nxd5 {[%clk 0:02:28]}  Qxd5 {[%clk 0:01:27]} 21. Rh4 {[%clk 0:02:11]}  Nh5 {[%clk 0:00:55]} 22. Re4 {[%clk 0:02:10]}  Rf6 {[%clk 0:00:45]} 23. Re5 {[%clk 0:02:07]}  Qd7 {[%clk 0:00:39]} 24. Rh1 {[%clk 0:02:05]}  Raf8 {[%clk 0:00:37]} 25. Rexh5 {[%clk 0:02:01]}  gxh5 {[%clk 0:00:37]} 26. Rxh5 {[%clk 0:02:01]}  Bd6 {[%clk 0:00:21]} 27. Ne5 {[%clk 0:01:50]}  Bxe5 {[%clk 0:00:17]} 28. dxe5 {[%clk 0:01:51]}  Rf5 {[%clk 0:00:17]} 29. Rxf5 {[%clk 0:01:49]}  Rxf5 {[%clk 0:00:17]} 30. Bxb6 {[%clk 0:01:49]}  Qd5+ {[%clk 0:00:14]} 31. Kg1 {[%clk 0:01:46]}  Rxe5 {[%clk 0:00:10]} 32. Be3 {[%clk 0:01:46]}  Re4 {[%clk 0:00:06]} 33. Bf3 {[%clk 0:01:45]} 1-0


[Site "https://www.chess.com"]